Cogmind - Beta 10.2 @@@ ROGUE MODE // 2020.11.12 @ 00:50:12 // Halloween2020/ForbiddenLore Player: blelm Result: Self-destructed Performance ------------- Evolutions (8) 4000 Regions Visited (33) 6600 Robots Destroyed (325) 1625 Value Destroyed (11325) 11325 Prototype IDs (98) 1960 Alien Tech Used (6) 1200 Bonus (1154) 1154 TOTAL SCORE: 27864 Bonus ------- High Alert Combat Kills 309 Follower Combat Kills 80 Met Data Miner 300 Met Imprinter 300 Met Zhirov 300 Met Warlord at Base 500 MAIN.C Attacked Warlord 500 Hacked Protovariant 500 Met Warlord at Research 2000 Scanned by Researcher 500 Acquired SGEMP 2000 Friendly Fire -6135 Cogmind --------- Core Integrity 1402/1450 Matter 132/300 Energy 330/700 System Corruption 1% Temperature Cool (0) Movement Hovering (60) Location -2/Quarantine Parts ------- > --- POWER (2) -------- Vortex Chain Reactor > --- PROPULSION (6) --- Combat Antigrav System Combat Antigrav System Combat Antigrav System Combat Antigrav System Combat Antigrav System Combat Antigrav System > --- UTILITY (13) ----- Experimental Cooling System Large Storage Unit Large Storage Unit Large Storage Unit Experimental Sensor Array Experimental Signal Interpreter Quantum Capacitor Layered Heavy Armor Plating Advanced Hacking Suite Advanced Hacking Suite Ghost Barrier > --- WEAPON (2) ------- Enhanced Nova Cannon Gamma Bomb Array > --- INVENTORY (22) --- Combat Antigrav System Combat Antigrav System Experimental Energy Well (1000) Experimental Utility Shielding Damper Plating Advanced Force Field Phase Redirector Phasing AFG Subatomic Replicator Terrabomb Terrabomb Terrabomb Proton Burst Cannon Enhanced Nova Cannon Null Cannon Hellfire Missile Launcher Core Stripper SGEMP Prototype Peak State ------------ > --- POWER ------------ Vortex Chain Reactor > --- PROPULSION ------- Combat Antigrav System Combat Antigrav System Combat Antigrav System Combat Antigrav System Combat Antigrav System Combat Antigrav System > --- UTILITY ---------- Experimental Cooling System Large Storage Unit Large Storage Unit Large Storage Unit Experimental Sensor Array Experimental Signal Interpreter Quantum Capacitor Advanced Hacking Suite Advanced Hacking Suite Ghost Barrier Matter Drive > --- WEAPON ----------- Proton Burst Cannon Enhanced Nova Cannon > --- INVENTORY -------- Quantum Reactor Combat Antigrav System Combat Antigrav System Experimental Energy Well Particle Accelerator Experimental Utility Shielding Damper Plating Advanced Force Field Phase Redirector Phasing AFG Subatomic Replicator Warp Gun Enhanced Nova Cannon Null Cannon Gamma Bomb Array Hellfire Missile Launcher Core Stripper SGEMP Prototype [Rating: 192] Favorites ----------- Power Micro Fission Core Engine Ion Engine Power Core Micro Fission Core Reactor Vortex Chain Reactor Propulsion Combat Airjet Treads Light Treads Leg Aluminum Leg Wheel Compact Wheel Hover Unit Combat Airjet Flight Unit Improved Flight Unit Utility Large Storage Unit Device Experimental Sensor Array Storage Large Storage Unit Processor Experimental Signal Interpreter Hackware Advanced Hacking Suite Protection Layered Heavy Armor Plating Artifact Matter Drive Weapon Phasing Sabre Energy Gun Enhanced Force Rifle Energy Cannon Heavy Neutron Cannon Ballistic Gun Assault Rifle Ballistic Cannon Flak Cannon Launcher Heavy Missile Launcher Special Weapon Mining Laser Impact Weapon Heavy Hammer Slashing Weapon Phasing Sabre Build | -11 -10 -10 -9 -9 -8 -7 -7 -7 -7 -6 -6 -6 -6 -6 -6 -6 -5 -5 -5 -5 -5 -4 -4 -4 -4 -4 -4 -4 -3 -3 -3 -2 -2 ------- Run | Scr Mat Min Mat Min Mat Fac Low Low Dat Pro Fac Was Fac Low Low Zio Pro Fac Upp Upp Zhi Pro Fac Was Fac Upp Upp War Pro Res Tes Res Qua Slots Evolved 16 | . . . 2 . 2 2 . . . . 2 . . . . . . 2 . . . . 2 . . . . . . 2 . 2 . Power 1 | . . . . . . . . . . . . . . . . . . . . . . . . . . . . . . 1 . . . Propulsion 4 | . . . . . 1 . . . . . 1 . . . . . . 1 . . . . . . . . . . . . . 1 . Utility 11 | . . . 2 . 1 2 . . . . 1 . . . . . . 1 . . . . 2 . . . . . . 1 . 1 . Weapon . | . . . . . . . . . . . . . . . . . . . . . . . . . . . . . . . . . . Parts Attached 703 | 4 14 . 22 18 58 44 1 . . . 16 11 16 2 9 8 8 37 17 4 12 7 26 8 48 4 13 14 1 60 143 25 53 Power 30 | . 2 . 2 1 3 4 . . . . 2 1 . . . . . 2 . . . . . . 1 . . 1 . 5 2 4 . Engine 10 | . 2 . 2 1 3 2 . . . . . . . . . . . . . . . . . . . . . . . . . . . Core 11 | . . . . . . 2 . . . . 2 1 . . . . . 2 . . . . . . 1 . . 1 . 2 . . . Reactor 9 | . . . . . . . . . . . . . . . . . . . . . . . . . . . . . . 3 2 4 . Propulsion 79 | 2 . . 3 6 16 11 . . . . 3 1 . . . 2 . 2 . . 2 . 2 . 7 . . 2 . 15 4 1 . Treads 19 | 1 . . 2 5 9 . . . . . . . . . . . . . . . . . . . . . . . . 2 . . . Leg . | . . . . . . . . . . . . . . . . . . . . . . . . . . . . . . . . . . Wheel 7 | 1 . . 1 1 4 . . . . . . . . . . . . . . . . . . . . . . . . . . . . Hover 42 | . . . . . 1 3 . . . . 3 1 . . . 2 . 2 . . 2 . 2 . 7 . . 2 . 13 3 1 . Flight 11 | . . . . . 2 8 . . . . . . . . . . . . . . . . . . . . . . . . 1 . . Utility 365 | 1 5 . 3 2 12 20 1 . . . 8 4 9 2 7 5 4 27 12 3 7 5 16 6 23 3 9 7 . 31 77 11 45 Device 204 | . . . 2 . 4 7 1 . . . 5 4 4 1 4 3 3 15 7 2 5 2 6 . 11 2 4 5 . 20 54 7 26 Storage 29 | 1 5 . . . 2 4 . . . . 2 . . . . . . 2 . . 1 . . . 2 . . . . 2 6 1 1 Processor 7 | . . . . . 1 1 . . . . . . 1 . . . . 1 . . . . . . . . . . . 1 . 2 . Hackware 13 | . . . . . . 4 . . . . 1 . 1 . . 1 . 1 . . 1 . 1 . 1 . . 1 . . . . 1 Protection 108 | . . . 1 2 5 4 . . . . . . 3 1 3 1 1 8 5 1 . 3 9 6 9 1 5 1 . 8 17 1 13 Artifact 4 | . . . . . . . . . . . . . . . . . . . . . . . . . . . . . . . . . 4 Weapon 229 | 1 7 . 14 9 27 9 . . . . 3 5 7 . 2 1 4 6 5 1 3 2 8 2 17 1 4 4 1 9 60 9 8 Energy Gun 36 | . 4 . 3 1 . . . . . . . 2 . . . . . . . . . . . 1 4 . . 1 . 5 14 1 . Energy Cannon 89 | . . . . 1 . 3 . . . . 2 . 4 . . . 2 3 2 1 1 1 3 . 7 1 2 . 1 4 37 8 6 Ballistic Gun 33 | 1 . . 7 6 17 1 . . . . . . . . . . . . . . . . . . . . . . . . 1 . . Ballistic Cannon 2 | . . . . . 1 . . . . . . . . . . . . . . . . . . . . . . . . . 1 . . Launcher 29 | . . . 3 1 5 2 . . . . . 1 . . 1 . 2 . 1 . . . 1 . 2 . 1 1 . . 6 . 2 Special Weapon 5 | . 3 . 1 . . . . . . . . . . . . . . . . . . . 1 . . . . . . . . . . Impact Weapon 2 | . . . . . 1 . . . . . . . . . . . . . . . . . . . . . . . . . 1 . . Slashing Weapon 33 | . . . . . 3 3 . . . . 1 2 3 . 1 1 . 3 2 . 2 1 3 1 4 . 1 2 . . . . . Piercing Weapon . | . . . . . . . . . . . . . . . . . . . . . . . . . . . . . . . . . . Special Melee Weapon . | . . . . . . . . . . . . . . . . . . . . . . . . . . . . . . . . . . Unidentified Prototypes 47 | . . . 1 . 4 1 . . . . 1 . . . . . . 1 . . 4 . . . . . . 6 . 5 16 2 6 Parts Lost 32 | . . . 9 11 4 . . . . . . 1 . . . . 1 3 . . . . 1 . . . . . . . 2 . . Power 2 | . . . 1 1 . . . . . . . . . . . . . . . . . . . . . . . . . . . . . Propulsion 8 | . . . 2 4 . . . . . . . 1 . . . . . 1 . . . . . . . . . . . . . . . Utility 9 | . . . 2 2 3 . . . . . . . . . . . . 2 . . . . . . . . . . . . . . . Weapon 13 | . . . 4 4 1 . . . . . . . . . . . 1 . . . . . 1 . . . . . . . 2 . . Highest Loss Streak 5 | . . . 3 5 1 . . . . . . 1 . . . . 1 1 . . . . 1 . . . . . . . 1 . . Average Slot Usage (%) 94 | . 100 100 87 81 95 90 100 100 100 100 99 99 100 100 100 100 99 99 94 94 93 93 93 85 93 93 93 93 94 90 88 90 89 Engine 2 | . 14 14 11 10 9 1 . . . . . . . . . . . . . . . . . . . . . . . . . . . Core 3 | . . . . . . 5 7 7 7 7 6 6 6 6 6 6 6 5 5 5 5 5 5 5 5 5 5 4 5 1 . . . Treads 3 | . 14 14 14 18 23 . . . . . . . . . . . . . . . . . . . . . . . . . . . . Wheel 1 | . 14 14 6 3 3 . . . . . . . . . . . . . . . . . . . . . . . . . . . . Hover 19 | . . . . . . 9 23 23 23 23 26 25 26 26 26 26 26 29 29 29 28 29 25 26 25 26 26 26 26 22 22 26 26 Device 6 | . . . 10 1 5 8 7 7 7 7 5 6 5 6 5 5 5 8 5 4 4 4 3 5 5 5 4 5 5 7 9 12 14 Storage 18 | . 28 28 22 22 18 10 15 15 15 15 15 20 20 20 20 20 20 17 17 17 17 17 15 15 20 21 21 21 21 19 19 17 14 Processor 4 | . . . . . 2 6 7 7 7 7 6 6 6 6 6 6 6 5 5 5 5 5 5 5 5 5 5 5 5 4 4 4 4 Hackware 12 | . . . . . . 22 23 23 23 23 23 20 20 20 20 20 20 14 11 11 11 11 14 15 15 15 15 15 15 14 11 8 11 Protection 4 | . . . 1 3 14 . . . . . . . . . . . . 3 5 5 5 4 10 5 5 4 4 4 5 5 4 8 4 Energy Gun 2 | . 17 28 4 . . . . . . . . 5 . . . . . . . . . . . 5 1 5 5 . . 4 2 . . Energy Cannon 3 | . . . . . . 2 . . . . 4 5 1 6 2 . 5 2 2 2 5 2 4 . 4 4 4 . 3 3 5 6 7 Ballistic Gun 2 | . 8 . 14 21 15 . . . . . . . . . . . . . . . . . . . . . . . . . . . . Slashing Weapon 3 | . . . . . . 6 7 7 7 7 5 1 10 6 6 13 6 7 7 8 4 7 5 . 3 . . 4 1 . . . . Naked Turns . | . . . . . . . . . . . . . . . . . . . . . . . . . . . . . . . . . . Heaviest Build 176 | 15 73 73 85 81 95 75 49 49 49 49 71 74 77 77 72 68 78 105 105 91 97 105 116 116 129 107 122 108 108 160 170 163 176 Greatest Support 180 | 16 16 16 40 48 68 66 66 66 66 66 88 88 88 88 88 88 88 110 110 110 110 110 110 110 126 110 110 110 110 150 150 180 180 Greatest Overweight (x) 24 | . 4 4 5 4 7 24 . . . . . 1 . . . . . . . . 1 . 1 1 1 . 1 . . 1 1 . . Average Overweight (x) . | . 2 4 2 2 2 . . . . . . . . . . . . . . . . . . . . . . . . . . . . Largest Inventory Capacity 28 | 8 20 20 20 20 20 24 16 16 16 16 22 22 22 22 22 22 22 22 22 22 22 22 22 22 28 28 28 28 28 28 28 28 28 Average Capacity 22 | 6 15 20 20 20 20 11 16 16 16 16 18 22 22 22 22 22 22 22 22 22 22 22 22 22 27 28 28 28 28 28 28 28 24 Most Carried 28 | 6 17 19 20 20 20 20 16 16 16 16 21 22 22 22 22 22 22 22 22 22 22 22 22 22 28 28 28 28 28 28 28 28 28 Average Carried 21 | 4 11 18 18 14 18 11 16 16 16 16 16 21 21 22 21 21 21 20 20 21 21 21 19 21 25 27 27 27 28 27 27 27 24 Final Capacity 28 | 8 20 20 20 20 20 16 16 16 16 16 22 22 22 22 22 22 22 22 22 22 22 22 22 22 28 28 28 28 28 28 28 28 22 Final Carried 28 | 4 17 19 20 14 20 16 16 16 16 16 21 22 22 22 22 22 21 20 21 22 22 22 20 22 28 28 28 28 28 28 28 28 22 Class Distribution -------------------- 61% | Hacker-Mutant 17% | Hauler-Mutant 15% | Machinist-Mutant Dominant Class ---------------- Mutant | -10/Materials Hauler-Mutant | -10/Mines Hauler-Mutant | -9/Materials Hauler-Mutant | -9/Mines Hauler-Mutant | -8/Materials Hacker-Mutant | -7/Factory Hacker-Mutant | -7/Lower Caves Hacker-Mutant | -7/Lower Caves Hacker-Mutant | -7/Data Miner Hacker-Mutant | -6/Proximity Caves Hacker-Mutant | -6/Factory Hacker-Mutant | -6/Waste Machinist-Mutant | -6/Factory Hacker-Mutant | -6/Lower Caves Hacker-Mutant | -6/Lower Caves Hacker-Mutant | -6/Zion Hacker-Mutant | -5/Proximity Caves Hacker-Mutant | -5/Factory Machinist-Mutant | -5/Upper Caves Machinist-Mutant | -5/Upper Caves Hacker-Mutant | -5/Zhirov Hacker-Mutant | -4/Proximity Caves Hacker-Mutant | -4/Factory Hacker-Mutant | -4/Waste Hacker-Mutant | -4/Factory Hacker-Mutant | -4/Upper Caves Hacker-Mutant | -4/Upper Caves Hacker-Mutant | -4/Warlord Hacker-Mutant | -3/Proximity Caves Hacker-Mutant | -3/Research Hacker-Mutant | -3/Testing Machinist-Mutant | -2/Research Hacker-Mutant | -2/Quarantine Resources | -11 -10 -10 -9 -9 -8 -7 -7 -7 -7 -6 -6 -6 -6 -6 -6 -6 -5 -5 -5 -5 -5 -4 -4 -4 -4 -4 -4 -4 -3 -3 -3 -2 -2 ----------- Run | Scr Mat Min Mat Min Mat Fac Low Low Dat Pro Fac Was Fac Low Low Zio Pro Fac Upp Upp Zhi Pro Fac Was Fac Upp Upp War Pro Res Tes Res Qua Matter Collected 9698 | 246 230 . 585 270 1588 484 48 . . . 160 115 108 62 95 94 120 501 186 64 140 70 324 130 638 63 257 86 59 749 1487 317 422 Remotely . | . . . . . . . . . . . . . . . . . . . . . . . . . . . . . . . . . . Salvage Created 17793 | 100 600 56 1157 129 2376 463 . . . . 289 3074 359 . 94 . 101 647 157 147 224 113 656 1233 987 . 190 . . 2080 2158 . 403 Parts 871 | 5 41 5 79 1 141 30 . . . . 7 91 7 . 12 . 3 48 6 2 4 5 39 28 74 . 15 . . 88 113 . 27 Haulers Intercepted 15 | . 2 . . . 6 1 . . . . 1 . 2 . . . . 1 . . . . . . . . . . . 2 . . . Recyclers Shooed 13 | . 2 . 2 . 1 . . . . . . . . . . . . 1 . . . . 1 . . . . . . 5 1 . . Parts Field Recycled . | . . . . . . . . . . . . . . . . . . . . . . . . . . . . . . . . . . Retrieved Matter . | . . . . . . . . . . . . . . . . . . . . . . . . . . . . . . . . . . Parts Self-Destructed 72 | . . . . . . . 3 . . . . . . . 10 . 1 . 6 2 . 5 . . . . 12 33 . . . . . Prevented 21 | . . . . . . . . . . . . . . . . . . . . . 4 . . . . . 9 7 1 . . . . Kills | -11 -10 -10 -9 -9 -8 -7 -7 -7 -7 -6 -6 -6 -6 -6 -6 -6 -5 -5 -5 -5 -5 -4 -4 -4 -4 -4 -4 -4 -3 -3 -3 -2 -2 ------- Run | Scr Mat Min Mat Min Mat Fac Low Low Dat Pro Fac Was Fac Low Low Zio Pro Fac Upp Upp Zhi Pro Fac Was Fac Upp Upp War Pro Res Tes Res Qua Combat Hostiles Destroyed 195 | . 13 3 27 6 42 2 . . . . . 6 2 . 7 . 6 7 4 1 . 2 8 4 13 . 3 . . 9 22 . 8 Melee 26 | . . . . . . 1 . . . . . . 2 . . . 1 7 4 1 . 2 4 . 4 . . . . . . . . Guns 72 | . 11 3 10 6 23 1 . . . . . 2 . . . . . . . . . . . 4 . . 1 . . 7 4 . . Cannons 30 | . . . . . 4 . . . . . . 4 . . . . . . . . . . . . 3 . . . . . 12 . 7 AOE 50 | . 2 . 16 . 13 . . . . . . . . . 7 . 5 . . . . . 2 . 4 . 1 . . . . . . Classes Destroyed 21 | 1 5 . 3 2 2 1 . . . . . 3 . . . . 1 . . 1 . . . . . . 1 . . . 1 . . Worker 22 | . 1 . 3 . 4 3 . . . . 1 . . . . . . 1 . . . . 2 . 4 . . . . 2 . . 1 Builder 24 | . . . 1 . 3 1 . . . . . . . . . . . 4 . . . . 3 . 3 . . . . 1 5 . 3 Tunneler 7 | . . . 3 . 1 1 . . . . . . . . . . . . . . . . . . 1 . . . . 1 . . . Hauler 15 | . 2 . . . 6 1 . . . . 1 . 2 . . . . 1 . . . . . . . . . . . 2 . . . Recycler 19 | 1 . . 1 . . 2 . . . . 1 . . . . . . . . . . . . . 2 . . . . 7 4 . 1 Operator 6 | . . . . . 2 2 . . . . . . . . . . . 1 . . . . . . . . . . . . 1 . . Watcher 20 | . 1 . 4 . 4 1 . . . . . . 1 . . . . 1 . . . . . . 2 . . . . 1 3 . 2 Swarmer 35 | . 3 3 4 . 8 . . . . . . . . . 7 . 2 . 2 . . . 1 . 5 . . . . . . . . Grunt 59 | . 10 . 17 2 24 . . . . . . . 1 . . . 2 . . . . . . . 3 . . . . . . . . Brawler 2 | . . . . . . . . . . . . . . . . . . . . . . . 2 . . . . . . . . . . Duelist 1 | . . . . . . . . . . . . . . . . . 1 . . . . . . . . . . . . . . . . Sentry 21 | . . . 6 . 9 . . . . . . . . . . . 1 . . . . . 1 . 1 . . . . . . . 3 Demolisher 1 | . . . . 1 . . . . . . . . . . . . . . . . . . . . . . . . . . . . . Specialist 1 | . . . . . . . . . . . . . . . . . . . . . . . . . . . 1 . . . . . . Hunter 8 | . . . . . 1 . . . . . . . . . . . . . . . . . 2 . . . 1 . . . 4 . . Programmer 51 | . . . . . . 2 . . . . . . 1 . . . . 7 2 . . 2 2 . 4 . 1 . . 9 16 . 5 Compactor 10 | . . . . . . . . . . . . 6 . . . . . . . . . . . 4 . . . . . . . . . Striker 2 | . . . . . . . . . . . . . . . . . . . . . . . . . . . . . . . 2 . . Assembled 3 | . . . . 3 . . . . . . . . . . . . . . . . . . . . . . . . . . . . . Surgeon 2 | . . . . . . . . . . . . 2 . . . . . . . . . . . . . . . . . . . . . Wasp 6 | . . . . . . . . . . . . 6 . . . . . . . . . . . . . . . . . . . . . Thug 7 | . . . . . . . . . . . . 7 . . . . . . . . . . . . . . . . . . . . . Savage 3 | . . . . . . . . . . . . 2 . . . . . . . 1 . . . . . . . . . . . . . Martyr 2 | . . . . . . . . . . . . 2 . . . . . . . . . . . . . . . . . . . . . Mutant 1 | . . . . . . . . . . . . . . . . . . . . 1 . . . . . . . . . . . . . Best Kill Streak 14 | 1 5 3 14 2 8 4 . . . . 1 2 1 . 3 . 3 3 2 1 . 1 4 2 5 . 2 . . 5 3 . 5 Combat Bots Only 10 | . 5 3 10 2 5 1 . . . . . 2 1 . 3 . 3 2 2 1 . 1 3 2 5 . 2 . . 3 3 . 5 Max Kills in Single Turn 7 | 1 2 1 7 1 7 1 . . . . 1 1 1 . 3 . 1 1 1 1 . 1 2 1 5 . 1 . . 1 1 . 2 Gunslinging . | . . . . . . . . . . . . . . . . . . . . . . . . . . . . . . . . . . Exploded 5 | . 1 . 5 . 4 . . . . . . . . . 3 . 1 . . . . . 1 . 3 . 1 . . . . . . Melee 1 | . . . . . . 1 . . . . . . 1 . . . 1 1 1 1 . 1 1 . 1 . . . . . . . . Uniques/NPCs Destroyed . | . . . . . . . . . . . . . . . . . . . . . . . . . . . . . . . . . . Combat | -11 -10 -10 -9 -9 -8 -7 -7 -7 -7 -6 -6 -6 -6 -6 -6 -6 -5 -5 -5 -5 -5 -4 -4 -4 -4 -4 -4 -4 -3 -3 -3 -2 -2 -------- Run | Scr Mat Min Mat Min Mat Fac Low Low Dat Pro Fac Was Fac Low Low Zio Pro Fac Upp Upp Zhi Pro Fac Was Fac Upp Upp War Pro Res Tes Res Qua Damage Taken 12773 | . 291 49 1165 1227 1954 360 . . . . . 52 277 98 45 . 474 844 108 223 . 35 1676 . 1250 . 301 . . 130 1440 279 495 Core 1385 | . 56 8 203 191 158 50 . . . . . . 18 . . . 37 203 2 . . . 74 . 56 . 20 . . 2 259 36 12 Absorbed by Shields 869 | . . . . . . . . . . . . . . . . . . . . . . . . . . . . . . . 450 193 226 Core Remaining (%) 74 | 100 . 74 . 1 71 . . . . 92 . . . . . . 93 . . . . 71 . . . . . . 86 . 79 . . Volleys Fired 1424 | 2 46 6 77 27 138 21 . . . . 5 95 20 6 4 . 29 15 42 17 7 29 39 91 103 23 19 . 14 173 207 11 158 Largest 2 | 2 2 2 2 2 2 2 . . . . 1 2 1 1 1 . 1 1 1 1 1 1 1 1 2 2 1 . 1 2 2 1 1 Hottest 235 | 60 100 80 100 96 72 90 . . . . 90 170 110 110 43 . 110 110 110 110 75 110 110 110 191 171 90 . 90 162 235 120 130 Shots Fired 1847 | 4 83 12 129 46 258 30 . . . . 5 161 20 6 4 . 29 15 42 17 7 29 39 90 106 28 20 . 14 211 273 11 158 Gun 843 | 4 77 12 110 41 202 18 . . . . . 82 . . . . . . . . . . . 87 11 4 3 . . 99 93 . . Cannon 922 | . . . . 3 38 10 . . . . 5 78 20 6 . . 19 15 42 17 7 29 31 3 93 24 12 . 14 112 180 11 153 Launcher 73 | . . . 17 2 18 2 . . . . . 1 . . 4 . 10 . . . . . 7 . 2 . 5 . . . . . 5 Special 9 | . 6 . 2 . . . . . . . . . . . . . . . . . . . 1 . . . . . . . . . . Kinetic 424 | 2 30 . 94 40 240 18 . . . . . . . . . . . . . . . . . . . . . . . . . . . Thermal 1174 | . 6 . 2 . . 10 . . . . 5 160 20 6 . . 19 15 42 17 . 29 18 90 88 28 15 . 14 211 224 11 144 Explosive 29 | . . . 11 . . 2 . . . . . . . . 4 . 10 . . . . . . . 2 . . . . . . . . Electromagnetic 219 | 2 47 12 22 6 18 . . . . . . 1 . . . . . . . . 7 . 20 . 16 . 5 . . . 49 . 14 Robot Hit Streak 26 | 1 7 5 13 5 18 3 . . . . . 12 5 . 7 . 9 . . . 2 . 19 26 12 . 4 . . 13 12 . 18 Robot Miss Streak 7 | 2 2 3 4 3 7 3 . . . . . 6 . . . . 1 . . . 2 . 1 3 3 . 2 . . 3 3 . 3 Penetration Max 1 | . . . . . 1 . . . . . . . . . . . . . . . . . . . . . . . . . . . . Secondary Targets 7 | . 2 1 1 1 2 . . . . . . . . . . . . . . . . . . . . . . . . . . . . Max Gunslinging Chain 1 | . 1 1 1 1 1 . . . . . . . . . . . . . . . . . . . . . . . . . . . . Capacitor 61 | . . . . . . . . . . . . . . . . . . . . . . . . . . . . . . . . . 61 Shots Hit Robots 1093 | 2 51 6 86 25 171 25 . . . . 12 146 36 . 2 . 11 39 10 10 5 16 42 68 50 . 8 . . 82 138 . 52 Core Hits 525 | 2 28 5 56 14 106 14 . . . . 4 41 7 . 7 . 12 17 5 4 3 4 30 14 32 . 7 . . 35 48 . 30 Critical Hits 102 | . . . . . 3 . . . . . . 8 . . . . . 4 1 . . . 1 21 5 . . . . 20 28 . 11 Critical Kills 34 | . . . . . 1 . . . . . . 3 . . . . . 3 1 . . . . 1 2 . . . . 9 8 . 6 Critical Parts Destroyed 44 | . . . . . 2 . . . . . . 1 . . . . . 1 . . . . 1 5 3 . . . . 10 16 . 5 Melee Attacks 540 | . . . . . 6 64 . . . 1 59 39 71 3 3 . 13 95 20 18 1 24 54 . 65 . 2 . 2 . . . . Impact 1 | . . . . . 1 . . . . . . . . . . . . . . . . . . . . . . . . . . . . Slashing 539 | . . . . . 5 64 . . . 1 59 39 71 3 3 . 13 95 20 18 1 24 54 . 65 . 2 . 2 . . . . Piercing . | . . . . . . . . . . . . . . . . . . . . . . . . . . . . . . . . . . Sneak Attacks 77 | . . . . . 1 10 . . . . 4 35 4 . . . . 10 . 3 . . 5 . 5 . . . . . . . . Combat Hostiles 1 | . . . . . . . . . . . . . . . . . . 1 . . . . . . . . . . . . . . . Follow-up Attacks 20 | . . . . . . . . . . . . 2 5 . . . . 5 2 3 . 1 2 . . . . . . . . . . Damage Inflicted 47318 | 35 791 87 2758 366 4602 1501 . . . . 680 7808 1736 . 681 . 1008 2587 406 519 221 633 2139 1873 3898 . 369 . . 2316 5878 . 4426 Guns 13062 | 35 713 87 1024 318 2697 252 . . . . . 1806 . . . . . . . . . . . 1873 144 . 88 . . 2129 1896 . . Cannons 12253 | . . . . . 451 . . . . . . 2182 130 . . . . . . . 115 . 311 . 818 . . . . 187 3982 . 4077 Explosions 7167 | . 54 . 1725 10 1286 50 . . . . . 68 . . 681 . 880 . . . . . 312 . 1502 . 250 . . . . . 349 Melee 14699 | . . . . . 102 1199 . . . . 680 3752 1606 . . . 128 2587 406 519 106 633 1516 . 1434 . 31 . . . . . . Ramming 113 | . . . 9 38 66 . . . . . . . . . . . . . . . . . . . . . . . . . . . . Kinetic 4850 | 10 240 . 893 307 3148 252 . . . . . . . . . . . . . . . . . . . . . . . . . . . Thermal 18700 | . 78 . 117 . 120 . . . . . . 3988 130 . . . . . . . . . . 1873 1176 . 159 . . 2316 4897 . 3846 Explosive 3803 | . . . 1318 . 87 50 . . . . . . . . 681 . 880 . . . . . . . 787 . . . . . . . . Electromagnetic 5153 | 25 473 87 421 21 1079 . . . . . . 68 . . . . . . . . 115 . 623 . 501 . 179 . . . 981 . 580 Impact . | . . . . . . . . . . . . . . . . . . . . . . . . . . . . . . . . . . Slashing 14699 | . . . . . 102 1199 . . . . 680 3752 1606 . . . 128 2587 406 519 106 633 1516 . 1434 . 31 . . . . . . Piercing . | . . . . . . . . . . . . . . . . . . . . . . . . . . . . . . . . . . Highest Corruption 8 | . . . 1 1 . 2 1 1 1 1 . . 2 2 2 2 . 5 2 1 1 1 5 7 7 7 8 8 . 3 6 . 1 Average Corruption 3 | . . . 1 1 . 1 1 1 1 1 . . 1 2 2 2 . 2 1 1 1 1 3 5 7 7 7 8 . 2 5 . 1 Corruption Purged 6 | . . . . . . 1 . . . . . . . . . . . 3 2 . . . . . . . . . . . . . . Effects 375 | . . . 2 2 . 13 1 1 1 2 . . 5 7 6 . . 13 4 2 . 3 11 24 99 26 28 4 . 27 94 . . Message Errors 81 | . . . . . . 8 1 1 1 1 . . 2 . 3 . . 3 . 1 . 1 2 4 20 2 7 2 . 5 17 . . Matter Fused 73 | . . . . . . . . . . . . . . . . . . 4 . . . . 4 6 24 6 8 . . 5 16 . . Heat Flow Errors 42 | . . . . . . 2 . . . . . . 1 . 1 . . 2 . . . . 1 3 12 4 2 1 . 4 9 . . Energy Discharges 48 | . . . . 2 . 1 . . . 1 . . 2 3 2 . . 2 1 . . 1 2 2 12 1 2 . . 8 6 . . Parts Rejected 3 | . . . . . . . . . . . . . . . . . . . . . . . . 1 1 . . . . . 1 . . Data Loss (minor) 47 | . . . 1 . . 2 . . . . . . . 3 . . . 1 3 1 . 1 2 1 8 5 6 . . 2 11 . . Data Loss (major) 13 | . . . . . . . . . . . . . . . . . . . . . . . . 2 3 1 . 1 . . 6 . . Misfires 12 | . . . . . . . . . . . . . . . . . . . . . . . . . 4 4 1 . . . 3 . . Targeting Errors 51 | . . . 1 . . . . . . . . . . 1 . . . 1 . . . . . 4 12 3 2 . . 3 24 . . Weapon Failures 5 | . . . . . . . . . . . . . . . . . . . . . . . . 1 3 . . . . . 1 . . Overload Shots 6 | . . . . . . 3 . . . . . . . . . . . . . . . . . . . . . . . . 3 . . Effects 3 | . . . . . . . . . . . . . . . . . . . . . . . . . . . . . . . 3 . . Meltdown 3 | . . . . . . . . . . . . . . . . . . . . . . . . . . . . . . . 3 . . Overflow Damage 3412 | . . . 112 . 43 71 . . . . 126 517 359 . 18 . 70 524 7 4 . 31 223 . 359 . . . . 14 212 . 722 Projectiles 981 | . . . . . 1 . . . . . . . . . . . . . . . . . . . 36 . . . . 14 212 . 718 Explosions 317 | . . . 112 . . . . . . . . . . . 18 . 38 . . . . . . . 145 . . . . . . . 4 Melee 2114 | . . . . . 42 71 . . . . 126 517 359 . . . 32 524 7 4 . 31 223 . 178 . . . . . . . . Knockbacks 15 | . . . . . 15 . . . . . . . . . . . . . . . . . . . . . . . . . . . . Impact 1 | . . . . . 1 . . . . . . . . . . . . . . . . . . . . . . . . . . . . Kinetic 12 | . . . . . 12 . . . . . . . . . . . . . . . . . . . . . . . . . . . . Secondary 2 | . . . . . 2 . . . . . . . . . . . . . . . . . . . . . . . . . . . . Self-Inflicted Damage 754 | . 23 . 46 31 126 . . . . . . 11 . . . . 96 . . . . . 7 . 296 . . . . . . . 118 Shots 33 | . 1 . 4 1 4 . . . . . . 1 . . . . 5 . . . . . 7 . 4 . . . . . . . 6 Rammed 11 | . 1 . 2 1 7 . . . . . . . . . . . . . . . . . . . . . . . . . . . . Targets Rammed 12 | . 1 . 2 1 8 . . . . . . . . . . . . . . . . . . . . . . . . . . . . Kicked . | . . . . . . . . . . . . . . . . . . . . . . . . . . . . . . . . . . Crushed 1 | . . . . . 1 . . . . . . . . . . . . . . . . . . . . . . . . . . . . Highest Temperature 442 | . 57 54 2 18 72 173 . . . . 64 357 151 196 243 . 185 194 304 198 . 166 304 298 347 181 111 152 10 324 442 31 285 Average Temperature 68 | . 21 24 1 16 22 66 . . . . 27 89 52 94 126 . 65 64 89 85 . 50 54 75 59 52 31 79 10 43 126 20 91 Received Heat Transfer 2054 | . 132 9 456 51 837 18 . . . . . . 60 . . . 117 63 . 45 . . 108 . 102 . 9 . . . . . 47 Effects 10 | . . . . . . . . . . . . 1 . . . . . . . . . . . . . . . . . . 6 . 3 Shutdowns 1 | . . . . . . . . . . . . . . . . . . . . . . . . . . . . . . . 1 . . Energy Bleed 3 | . . . . . . . . . . . . . . . . . . . . . . . . . . . . . . . 3 . . Interference 5 | . . . . . . . . . . . . 1 . . . . . . . . . . . . . . . . . . 1 . 3 Short Circuit 1 | . . . . . . . . . . . . . . . . . . . . . . . . . . . . . . . 1 . . Siege Activations . | . . . . . . . . . . . . . . . . . . . . . . . . . . . . . . . . . . Robots Corrupted 15 | . . . 1 . 2 . . . . . . . . . . . . . . . 1 . 2 . 2 . 1 . . . 5 . 1 Combat Hostiles 14 | . . . 1 . 2 . . . . . . . . . . . . . . . 1 . 2 . 2 . 1 . . . 4 . 1 Parts Fried 33 | . 3 . 1 . 6 . . . . . . . . . . . . . . . 1 . 2 . 4 . 2 . . . 12 . 2 Impact Corruptions . | . . . . . . . . . . . . . . . . . . . . . . . . . . . . . . . . . . Robots Melted 5 | . . . . . . . . . . . . . . . . . . . . . . . . . . . . . . 2 3 . . Combat Hostiles 4 | . . . . . . . . . . . . . . . . . . . . . . . . . . . . . . 2 2 . . Parts Melted 64 | . . . . . 1 . . . . . . 2 . . . . . . . . . . . . . . . . . 38 22 . 1 Heat Transferred 20042 | . 150 . 200 . 150 . . . . . . 6125 200 . . . . . . . . . . 2886 872 . 161 . . 3011 4352 . 1935 Parts Sabotaged . | . . . . . . . . . . . . . . . . . . . . . . . . . . . . . . . . . . Parts Stolen . | . . . . . . . . . . . . . . . . . . . . . . . . . . . . . . . . . . Parts Stripped . | . . . . . . . . . . . . . . . . . . . . . . . . . . . . . . . . . . Power Chain Reactions 11 | . 2 . 2 . 5 . . . . . . . . . . . . . . . . . . . . . 1 . . . . . 1 Missiles Intercepted . | . . . . . . . . . . . . . . . . . . . . . . . . . . . . . . . . . . Alert | -11 -10 -10 -9 -9 -8 -7 -7 -7 -7 -6 -6 -6 -6 -6 -6 -6 -5 -5 -5 -5 -5 -4 -4 -4 -4 -4 -4 -4 -3 -3 -3 -2 -2 ------- Run | Scr Mat Min Mat Min Mat Fac Low Low Dat Pro Fac Was Fac Low Low Zio Pro Fac Upp Upp Zhi Pro Fac Was Fac Upp Upp War Pro Res Tes Res Qua Peak Influence 586 | 5 171 116 482 104 586 539 . . . . 98 29 436 . . . . 275 . . . . 580 209 565 . . . . 431 287 164 254 Initial 254 | . 3 45 33 84 . 254 . . . . . 15 . . . . . . . . . . 28 203 . . . . . . 240 161 3 Average 182 | 2 66 60 219 26 357 336 . . . . 27 10 57 . . . . 104 . . . . 195 144 272 . . . . 298 146 66 99 Maximum Alert Level 2 | . . . 2 . 2 2 . . . . . . 2 . . . . 1 . . . . 2 1 2 . . . . 2 1 . 1 Low Security (%) 61 | 100 100 100 48 100 11 . . . . . 100 100 90 . . . . 85 . . . . 59 91 52 . . . . 18 76 100 90 Level 1 24 | . . . 38 . 43 89 . . . . . . . . . . . 14 . . . . 22 8 5 . . . . 62 23 . 9 Level 2 14 | . . . 13 . 45 10 . . . . . . 9 . . . . . . . . . 17 . 42 . . . . 18 . . . Level 3 . | . . . . . . . . . . . . . . . . . . . . . . . . . . . . . . . . . . Level 4 . | . . . . . . . . . . . . . . . . . . . . . . . . . . . . . . . . . . Level 5 . | . . . . . . . . . . . . . . . . . . . . . . . . . . . . . . . . . . High Security . | . . . . . . . . . . . . . . . . . . . . . . . . . . . . . . . . . . Max Security . | . . . . . . . . . . . . . . . . . . . . . . . . . . . . . . . . . . Squads Dispatched 61 | . 1 . 3 1 7 7 . . . . 3 . 6 . . . . 5 . . . . 3 . 5 . . . . 4 10 1 5 Investigation 17 | . 1 . 2 1 5 4 . . . . 1 . . . . . . . . . . . 1 . 2 . . . . . . . . Extermination 28 | . . . . . . 3 . . . . 2 . 3 . . . . 4 . . . . 2 . 2 . . . . 3 5 . 4 Reinforcement 13 | . . . 1 . 1 . . . . . . . 3 . . . . 1 . . . . . . . . . . . 1 4 1 1 Assault 3 | . . . . . 1 . . . . . . . . . . . . . . . . . . . 1 . . . . . 1 . . Garrison . | . . . . . . . . . . . . . . . . . . . . . . . . . . . . . . . . . . Intercept . | . . . . . . . . . . . . . . . . . . . . . . . . . . . . . . . . . . Construction Impeded . | . . . . . . . . . . . . . . . . . . . . . . . . . . . . . . . . . . Haulers Reinforced 5 | . . . . . . . . . . . . . 3 . . . . . . . . . . . . . . . . 1 1 . . Stealth | -11 -10 -10 -9 -9 -8 -7 -7 -7 -7 -6 -6 -6 -6 -6 -6 -6 -5 -5 -5 -5 -5 -4 -4 -4 -4 -4 -4 -4 -3 -3 -3 -2 -2 --------- Run | Scr Mat Min Mat Min Mat Fac Low Low Dat Pro Fac Was Fac Low Low Zio Pro Fac Upp Upp Zhi Pro Fac Was Fac Upp Upp War Pro Res Tes Res Qua Distress Signals 13 | . 1 . 1 . . . . . . . . . . . . . . 1 . . . . . . 1 . . . . . . 7 2 Communications Jammed 15 | . . . . . . . . . . . . . . . . . . 8 . . . . . . . . . . . . 7 . . Distress Signals 15 | . . . . . . . . . . . . . . . . . . 8 . . . . . . . . . . . . 7 . . Times Spotted 353 | . 17 6 34 7 67 19 . . . . 4 8 5 3 6 . 7 27 9 1 . 3 17 10 29 . 7 . . 13 33 3 18 Peak Tracking Total 11 | . 4 3 11 2 5 4 . . . . 2 6 2 3 4 . 3 6 9 1 . 3 7 5 6 . 5 . . 4 3 3 7 Tactical Retreats 41 | . . 1 2 . 2 5 . . . . . 3 . . 2 . 1 5 3 . . 1 2 6 2 . 3 . . . 2 1 . Traps | -11 -10 -10 -9 -9 -8 -7 -7 -7 -7 -6 -6 -6 -6 -6 -6 -6 -5 -5 -5 -5 -5 -4 -4 -4 -4 -4 -4 -4 -3 -3 -3 -2 -2 ------- Run | Scr Mat Min Mat Min Mat Fac Low Low Dat Pro Fac Was Fac Low Low Zio Pro Fac Upp Upp Zhi Pro Fac Was Fac Upp Upp War Pro Res Tes Res Qua Traps Triggered 12 | . 1 . 1 . 3 1 . . . . 1 . . . . . . . . . . . 2 . 2 . 1 . . . . . . Indirectly . | . . . . . . . . . . . . . . . . . . . . . . . . . . . . . . . . . . Trap Hack Attempts . | . . . . . . . . . . . . . . . . . . . . . . . . . . . . . . . . . . Triggered . | . . . . . . . . . . . . . . . . . . . . . . . . . . . . . . . . . . Disarmed . | . . . . . . . . . . . . . . . . . . . . . . . . . . . . . . . . . . Reprogrammed . | . . . . . . . . . . . . . . . . . . . . . . . . . . . . . . . . . . Reused . | . . . . . . . . . . . . . . . . . . . . . . . . . . . . . . . . . . Traps Extracted . | . . . . . . . . . . . . . . . . . . . . . . . . . . . . . . . . . . Installed . | . . . . . . . . . . . . . . . . . . . . . . . . . . . . . . . . . . Triggered 15 | . . . . . . . . . . . . . . . . . . . 1 1 . . . . . . . 12 1 . . . . Machines | -11 -10 -10 -9 -9 -8 -7 -7 -7 -7 -6 -6 -6 -6 -6 -6 -6 -5 -5 -5 -5 -5 -4 -4 -4 -4 -4 -4 -4 -3 -3 -3 -2 -2 ---------- Run | Scr Mat Min Mat Min Mat Fac Low Low Dat Pro Fac Was Fac Low Low Zio Pro Fac Upp Upp Zhi Pro Fac Was Fac Upp Upp War Pro Res Tes Res Qua Machines Disabled 55 | . 2 1 5 . 5 . . . . . . . 1 . . . . 2 . 1 1 . 1 . 17 . 1 . . . 10 . 8 Max in Single Turn 15 | . 1 . 2 . 1 . . . . . . . 1 . . . . 1 . 1 1 . 1 . 15 . 1 . . . 1 . 1 Garrison Access 12 | . . . . . 1 . . . . . 1 . 1 . . . . 1 . . . . 1 . 3 . . . . 3 1 . . Machines Sabotaged . | . . . . . . . . . . . . . . . . . . . . . . . . . . . . . . . . . . Garrisons Compromised . | . . . . . . . . . . . . . . . . . . . . . . . . . . . . . . . . . . Overloaded Fab Kills . | . . . . . . . . . . . . . . . . . . . . . . . . . . . . . . . . . . Fab Network Shutdowns 3 | . . . . . . . . . . . . . 1 . . . . . . . . . 1 . . . . . . 1 . . . Hacking | -11 -10 -10 -9 -9 -8 -7 -7 -7 -7 -6 -6 -6 -6 -6 -6 -6 -5 -5 -5 -5 -5 -4 -4 -4 -4 -4 -4 -4 -3 -3 -3 -2 -2 --------- Run | Scr Mat Min Mat Min Mat Fac Low Low Dat Pro Fac Was Fac Low Low Zio Pro Fac Upp Upp Zhi Pro Fac Was Fac Upp Upp War Pro Res Tes Res Qua Machines Accessed 157 | . 3 . 4 1 13 11 . . 4 . 14 . 16 . 1 1 . 10 1 1 9 . 8 . 17 1 . 6 . 12 11 . 13 Terminals 87 | . 3 . 3 . 10 8 . . . . 9 . 11 . . . . 6 . . . . 4 . 9 . . . . 5 7 . 12 Fabricators 12 | . . . . . . 2 . . . . 3 . 1 . . . . 1 . . . . 1 . 2 . . . . 1 1 . . Repair Stations 11 | . . . . . 1 . . . . . 1 . 2 . . . . . . . . . 2 . 3 . . . . 1 1 . . Recycling Units 2 | . . . . . . . . . . . . . . . . . . 1 . . . . . . . . . . . 1 . . . Scanalyzers 8 | . . . 1 . 1 1 . . . . . . 1 . . . . 1 . . . . . . . . . . . 1 1 . 1 Garrison Access 12 | . . . . . 1 . . . . . 1 . 1 . . . . 1 . . . . 1 . 3 . . . . 3 1 . . Total Hacks 510 | . 10 . 18 1 31 38 . . 24 . 42 . 43 . 4 3 . 30 1 1 48 . 32 . 53 1 . 16 . 34 44 . 36 Successful 338 | . 5 . 8 1 12 27 . . 24 . 27 . 25 . 4 3 . 17 1 1 48 . 26 . 28 1 . 16 . 20 26 . 18 Failed 169 | . 4 . 9 . 19 10 . . . . 15 . 18 . . . . 13 . . . . 6 . 25 . . . . 14 18 . 18 Catastrophic 33 | . . . . . 7 1 . . . . 3 . 4 . . . . 5 . . . . 1 . 2 . . . . 2 4 . 4 Database Lockouts 3 | . 1 . 1 . . 1 . . . . . . . . . . . . . . . . . . . . . . . . . . . Manual 174 | . 8 . 12 . 19 24 . . . . 24 . 17 . . . . 9 . . . . 13 . 10 . 1 1 . 7 15 . 14 Terminals 278 | . 10 . 12 . 26 26 . . . . 30 . 30 . . . . 19 . . . . 19 . 29 . . . . 19 28 . 30 Fabricators 46 | . . . . . . 8 . . . . 9 . 5 . . . . 2 . . . . 2 . 7 . . . . 4 9 . . Repair Stations 39 | . . . . . 2 . . . . . 2 . 5 . . . . . . . . . 10 . 14 . . . . 4 2 . . Recycling Units 2 | . . . . . . . . . . . . . . . . . . 1 . . . . . . . . . . . 1 . . . Scanalyzers 31 | . . . 6 . 2 4 . . . . . . 2 . . . . 6 . . . . . . . . . . . 2 3 . 6 Garrison Access 15 | . . . . . 1 . . . . . 1 . 1 . . . . 2 . . . . 1 . 3 . . . . 4 2 . . Terminal Hacks 209 | . 3 . 2 1 5 11 . . 24 . 14 . 12 . 4 3 . 6 1 1 48 . 12 . 13 1 . 16 . 7 13 . 12 Record 69 | . . . . . . . . . 11 . 1 . . . 4 . . . . . 36 . 1 . . . . 10 . 1 1 . 4 Part Schematic 32 | . . . . . . 2 . . 6 . 4 . 4 . . 3 . 1 . . 4 . 4 . 3 . . . . . . . 1 Robot Schematic 4 | . . . . . . . . . 4 . . . . . . . . . . . . . . . . . . . . . . . . Robot Analysis 6 | . 1 . 1 . . . . . . . . . . . . . . . . . 4 . . . . . . . . . . . . Prototype ID Bank 14 | . 1 . . . . 1 . . 3 . . . . . . . . . . . 4 . 1 . . . . 4 . . . . . Open Door 6 | . . . . 1 . . . . . . . . . . . . . . 1 1 . . . . . 1 . 2 . . . . . Level Access Points 1 | . . . . . . . . . . . . . . . . . . . . . . . . . . . . . . . . . 1 Branch Access Points 6 | . . . . . . 1 . . . . 1 . 1 . . . . 1 . . . . . . 1 . . . . 1 . . . Terminal Index 9 | . . . . . 1 1 . . . . 1 . 1 . . . . 1 . . . . 1 . 1 . . . . . 1 . 1 Fabricator Index 7 | . . . . . . 1 . . . . 1 . 1 . . . . 1 . . . . 1 . 1 . . . . . 1 . . Repair Station Index 2 | . . . . . . . . . . . . . . . . . . . . . . . 1 . 1 . . . . . . . . Scanalyzer Index 2 | . . . . . . . . . . . 1 . . . . . . 1 . . . . . . . . . . . . . . . Garrison Index 1 | . . . . . . 1 . . . . . . . . . . . . . . . . . . . . . . . . . . . Alert Level 5 | . . . . . . . . . . . . . . . . . . . . . . . . . 1 . . . . 1 3 . . Unreport Threat 8 | . . . 1 . 2 . . . . . . . 1 . . . . . . . . . . . 1 . . . . . 2 . 1 Locate Traps 8 | . . . . . . 1 . . . . . . . . . . . . . . . . 1 . 2 . . . . 2 . . 2 Recall Extermination 5 | . . . . . . 1 . . . . 2 . 1 . . . . . . . . . . . . . . . . . . . 1 Recall Reinforcements 4 | . . . . . . . . . . . . . 2 . . . . . . . . . . . . . . . . . 2 . . Hauler Manifests 7 | . . . . . 1 1 . . . . 1 . 1 . . . . . . . . . 1 . . . . . . 1 1 . . Zone Layout 12 | . 1 . . . 1 1 . . . . 2 . . . . . . 1 . . . . 1 . 2 . . . . 1 1 . 1 Protovariant Controls 1 | . . . . . . . . . . . . . . . . . . . . . . . . . . . . . . . 1 . . Fabricator Hacks 31 | . . . . . . 6 . . . . 6 . 4 . . . . 2 . . . . 2 . 3 . . . . 3 5 . . Network Status 1 | . . . . . . . . . . . . . . . . . . . . . . . . . 1 . . . . . . . . Load Schematic 14 | . . . . . . 2 . . . . 3 . 2 . . . . 1 . . . . 1 . 1 . . . . 1 3 . . Build 16 | . . . . . . 4 . . . . 3 . 2 . . . . 1 . . . . 1 . 1 . . . . 2 2 . . Repair Station Hacks 28 | . . . . . 2 . . . . . 2 . 4 . . . . . . . . . 8 . 7 . . . . 3 2 . . Scan Component 15 | . . . . . 1 . . . . . 1 . 2 . . . . . . . . . 4 . 4 . . . . 2 1 . . Repair 13 | . . . . . 1 . . . . . 1 . 2 . . . . . . . . . 4 . 3 . . . . 1 1 . . Recycling Unit Hacks 2 | . . . . . . . . . . . . . . . . . . 1 . . . . . . . . . . . 1 . . . Report Inventory 2 | . . . . . . . . . . . . . . . . . . 1 . . . . . . . . . . . 1 . . . Scanalyzer 27 | . . . 6 . 2 4 . . . . . . 1 . . . . 6 . . . . . . . . . . . 2 2 . 4 Insert Component 15 | . . . 3 . 1 2 . . . . . . 1 . . . . 3 . . . . . . . . . . . 1 1 . 3 Analyze 12 | . . . 3 . 1 2 . . . . . . . . . . . 3 . . . . . . . . . . . 1 1 . 1 Garrison Access Hacks 12 | . . . . . 1 . . . . . 1 . 1 . . . . 1 . . . . 1 . 3 . . . . 3 1 . . Seal Access 12 | . . . . . 1 . . . . . 1 . 1 . . . . 1 . . . . 1 . 3 . . . . 3 1 . . Unauthorized Hacks 29 | . 2 . . . 2 6 . . . . 4 . 3 . . . . 1 . . . . 3 . 2 . . . . 1 3 . 2 Terminals 23 | . 2 . . . 2 4 . . . . 2 . 2 . . . . 1 . . . . 3 . 2 . . . . 1 2 . 2 Track 2 | . 1 . . . 1 . . . . . . . . . . . . . . . . . . . . . . . . . . . . Assimilate 4 | . . . . . . 2 . . . . . . . . . . . . . . . . 1 . 1 . . . . . . . . Botnet 15 | . . . . . . 2 . . . . 2 . 2 . . . . 1 . . . . 2 . 1 . . . . 1 2 . 2 Operators 2 | . 1 . . . 1 . . . . . . . . . . . . . . . . . . . . . . . . . . . . Fabricators 6 | . . . . . . 2 . . . . 2 . 1 . . . . . . . . . . . . . . . . . 1 . . Siphon 6 | . . . . . . 2 . . . . 2 . 1 . . . . . . . . . . . . . . . . . 1 . . Repair Stations . | . . . . . . . . . . . . . . . . . . . . . . . . . . . . . . . . . . Recycling Units . | . . . . . . . . . . . . . . . . . . . . . . . . . . . . . . . . . . Scanalyzers . | . . . . . . . . . . . . . . . . . . . . . . . . . . . . . . . . . . Garrison Access . | . . . . . . . . . . . . . . . . . . . . . . . . . . . . . . . . . . Data Cores Recovered 1 | . . . . . . . . . . . . . . . . . . . . . . . . . . . . . . . 1 . . Used . | . . . . . . . . . . . . . . . . . . . . . . . . . . . . . . . . . . Hacking Detections 114 | . 2 . 3 . 12 10 . . . . 13 . 14 . . . . 9 . . . . 6 . 14 . . . . 10 11 . 10 Full Trace Events 11 | . . . 2 . 2 4 . . . . 1 . . . . . . . . . . . 1 . 1 . . . . . . . . Feedback Events 1 | . . . . . . . . . . . . . . . . . . . . . . . 1 . . . . . . . . . . Corruption 1 | . . . . . . . . . . . . . . . . . . . . . . . 1 . . . . . . . . . . Feedback Blocked . | . . . . . . . . . . . . . . . . . . . . . . . . . . . . . . . . . . Robot Schematics Acquired 4 | . . . . . . . . . 4 . . . . . . . . . . . . . . . . . . . . . . . . Robots Built . | . . . . . . . . . . . . . . . . . . . . . . . . . . . . . . . . . . Matter . | . . . . . . . . . . . . . . . . . . . . . . . . . . . . . . . . . . Time . | . . . . . . . . . . . . . . . . . . . . . . . . . . . . . . . . . . Total Robot Build Rating . | . . . . . . . . . . . . . . . . . . . . . . . . . . . . . . . . . . Part Schematics Acquired 41 | . . . 3 . 1 3 . . 6 . 3 . 4 . . 3 . 4 . . 4 . 4 . 3 . . . . 1 . . 2 Parts Built 25 | . . . . . . 8 . . . . 3 . 3 . . . . 1 . . . . 1 . 2 . . . . 4 3 . . Matter 3100 | . . . . . . 568 . . . . 355 . 430 . . . . 256 . . . . 318 . 256 . . . . 512 405 . . Time 1232 | . . . . . . 284 . . . . 171 . 299 . . . . 128 . . . . 84 . 42 . . . . 84 140 . . Total Part Build Rating 156 | . . . . . . 40 . . . . 15 . 18 . . . . 8 . . . . 6 . 16 . . . . 32 21 . . Parts Repaired 13 | . . . . . 1 . . . . . 1 . 2 . . . . . . . . . 4 . 3 . . . . 1 1 . . Time 471 | . . . . . 38 . . . . . 44 . 87 . . . . . . . . . 140 . 78 . . . . 22 62 . . Parts Recycled . | . . . . . . . . . . . . . . . . . . . . . . . . . . . . . . . . . . Recycled Matter . | . . . . . . . . . . . . . . . . . . . . . . . . . . . . . . . . . . Retrieved Matter . | . . . . . . . . . . . . . . . . . . . . . . . . . . . . . . . . . . Retrieved Components . | . . . . . . . . . . . . . . . . . . . . . . . . . . . . . . . . . . Parts Scanalyzed 13 | . . . 3 . 1 2 . . . . . . 1 . . . . 3 . . . . . . . . . . . 1 1 . 1 Part Schematics Acquired 10 | . . . 3 . 1 1 . . . . . . . . . . . 3 . . . . . . . . . . . 1 . . 1 Parts Damaged . | . . . . . . . . . . . . . . . . . . . . . . . . . . . . . . . . . . Bothacking | -11 -10 -10 -9 -9 -8 -7 -7 -7 -7 -6 -6 -6 -6 -6 -6 -6 -5 -5 -5 -5 -5 -4 -4 -4 -4 -4 -4 -4 -3 -3 -3 -2 -2 ------------ Run | Scr Mat Min Mat Min Mat Fac Low Low Dat Pro Fac Was Fac Low Low Zio Pro Fac Upp Upp Zhi Pro Fac Was Fac Upp Upp War Pro Res Tes Res Qua Used RIF Installer . | . . . . . . . . . . . . . . . . . . . . . . . . . . . . . . . . . . Robots Hacked 1 | . . . . . . . . . . . . . . . . . . . . . . . 1 . . . . . . . . . . Non-combat 1 | . . . . . . . . . . . . . . . . . . . . . . . 1 . . . . . . . . . . Combat . | . . . . . . . . . . . . . . . . . . . . . . . . . . . . . . . . . . Robot Hacks Applied 1 | . . . . . . . . . . . . . . . . . . . . . . . 1 . . . . . . . . . . find_chute 1 | . . . . . . . . . . . . . . . . . . . . . . . 1 . . . . . . . . . . Relay Couplers Released . | . . . . . . . . . . . . . . . . . . . . . . . . . . . . . . . . . . Robots Rewired 8 | . . . . . . . . . . . . . . . . . . . . 3 . . . . . . . 5 . . . . . Allies Hacked . | . . . . . . . . . . . . . . . . . . . . . . . . . . . . . . . . . . Hacks Repelled . | . . . . . . . . . . . . . . . . . . . . . . . . . . . . . . . . . . Allies | -11 -10 -10 -9 -9 -8 -7 -7 -7 -7 -6 -6 -6 -6 -6 -6 -6 -5 -5 -5 -5 -5 -4 -4 -4 -4 -4 -4 -4 -3 -3 -3 -2 -2 -------- Run | Scr Mat Min Mat Min Mat Fac Low Low Dat Pro Fac Was Fac Low Low Zio Pro Fac Upp Upp Zhi Pro Fac Was Fac Upp Upp War Pro Res Tes Res Qua Total Allies 33 | . . 2 . . . 1 . . . 1 . 19 . . . . . . . 3 . . 1 1 . . . 5 . . . . . Largest Group 19 | . . 2 . . . . . . . 1 1 19 . . . . . . . 3 . . 1 1 . . . 5 . . . . . Highest-Rated Group 696 | . . 45 . . . . . . . 94 94 696 . . . . . . . 65 . . 26 46 . . . 267 . . . . . Highest-Rated Ally 94 | . . 31 . . . . . . . 94 94 50 . . . . . . . 25 . . 26 46 . . . 60 . . . . . Total Orders 2 | . . . . . . . . . . . . . . . . . . . . 1 . . 1 . . . . . . . . . . STAY 1 | . . . . . . . . . . . . . . . . . . . . . . . 1 . . . . . . . . . . ROAM 1 | . . . . . . . . . . . . . . . . . . . . 1 . . . . . . . . . . . . . Ally Attacks 19 | . . 8 . . . . . . . . 6 . . . . . . . . 3 . . . 2 . . . . . . . . . Total Damage 432 | . . 126 . . . . . . . . 204 . . . . . . . . 27 . . . 75 . . . . . . . . . Kills 5 | . . 2 . . . . . . . . 2 . . . . . . . . 1 . . . . . . . . . . . . . Allies Corrupted . | . . . . . . . . . . . . . . . . . . . . . . . . . . . . . . . . . . Allies Melted . | . . . . . . . . . . . . . . . . . . . . . . . . . . . . . . . . . . Intel | -11 -10 -10 -9 -9 -8 -7 -7 -7 -7 -6 -6 -6 -6 -6 -6 -6 -5 -5 -5 -5 -5 -4 -4 -4 -4 -4 -4 -4 -3 -3 -3 -2 -2 ------- Run | Scr Mat Min Mat Min Mat Fac Low Low Dat Pro Fac Was Fac Low Low Zio Pro Fac Upp Upp Zhi Pro Fac Was Fac Upp Upp War Pro Res Tes Res Qua Robot Analysis Total 6 | . 1 . 1 . . . . . . . . . . . . . . . . . 4 . . . . . . . . . . . . Derelict Logs Recovered 21 | . . 1 . 1 . . 1 2 . 1 . . . 2 1 1 1 . 2 1 . 2 . . . 3 2 . . . . . . Drone Launches . | . . . . . . . . . . . . . . . . . . . . . . . . . . . . . . . . . . Drone Recoveries . | . . . . . . . . . . . . . . . . . . . . . . . . . . . . . . . . . . Exploration | -11 -10 -10 -9 -9 -8 -7 -7 -7 -7 -6 -6 -6 -6 -6 -6 -6 -5 -5 -5 -5 -5 -4 -4 -4 -4 -4 -4 -4 -3 -3 -3 -2 -2 ------------- Run | Scr Mat Min Mat Min Mat Fac Low Low Dat Pro Fac Was Fac Low Low Zio Pro Fac Upp Upp Zhi Pro Fac Was Fac Upp Upp War Pro Res Tes Res Qua Turns Passed 38257 | 18 1090 721 1215 1355 3214 1881 405 346 59 575 1501 1030 1330 726 633 1147 894 1281 1145 724 717 663 981 527 2781 848 903 730 928 2612 2795 1071 1411 Spaces Moved 32950 | 6 743 498 531 712 1497 2475 551 462 82 703 1648 540 1126 851 790 921 732 1244 963 640 366 523 825 267 2517 1073 838 787 590 2368 2086 1533 1462 Core 2 | . . . . . . 2 . . . . . . . . . . . . . . . . . . . . . . . . . . . Treads 1808 | . . . 351 451 1006 . . . . . . . . . . . . . . . . . . . . . . . . . . . . Legs . | . . . . . . . . . . . . . . . . . . . . . . . . . . . . . . . . . . Wheels 2179 | 6 743 498 180 261 491 . . . . . . . . . . . . . . . . . . . . . . . . . . . . Hover 27240 | . . . . . . 752 551 462 82 703 1648 540 1126 851 790 921 732 1244 963 640 366 523 825 267 2517 1073 838 787 590 2368 2086 1533 1462 Flight 1721 | . . . . . . 1721 . . . . . . . . . . . . . . . . . . . . . . . . . . . Fastest Speed 29 | 100 100 140 140 140 150 29 72 72 72 72 68 68 68 68 68 68 68 64 64 64 64 64 64 64 64 64 64 64 64 64 64 60 60 Average Speed 75 | 100 122 140 178 165 173 43 72 72 72 72 68 68 68 68 68 68 68 64 64 64 64 64 65 70 64 64 64 64 64 65 75 60 60 Slowest Speed 1250 | 100 140 140 240 220 240 1250 72 72 72 72 72 142 68 68 68 68 68 64 64 64 138 64 138 134 138 64 134 68 64 142 142 60 60 Overloaded Moves . | . . . . . . . . . . . . . . . . . . . . . . . . . . . . . . . . . . Propulsion Burnouts . | . . . . . . . . . . . . . . . . . . . . . . . . . . . . . . . . . . Robots Hopped 3 | . . . . . . 3 . . . . . . . . . . . . . . . . . . . . . . . . . . . Cave-ins Triggered . | . . . . . . . . . . . . . . . . . . . . . . . . . . . . . . . . . . Teleports 1 | . . . . . . . . . . . . . . . . . . . . . 1 . . . . . . . . . . . . Exploration Rate (%) 65 | 2 81 95 45 94 95 42 72 56 69 71 48 96 24 94 80 85 77 23 80 71 62 57 11 80 46 90 71 86 64 33 96 43 75 Regions Visited 33 Branch Regions 20 Pre-discovered Areas 9 | . . 1 . . . . . . 1 . . . . 2 . . . . 1 . 3 . . . . . 1 . . . . . . Known Exits Taken 24 | . . . . . 1 1 1 1 1 1 . . 1 1 1 1 1 1 1 1 1 1 . . 1 1 1 1 1 1 1 1 . Unknown Exits Taken 5 | 1 1 1 1 1 . . . . . . . . . . . . . . . . . . . . . . . . . . . . . Scrap Searched 35 | . . 1 . 1 . . 2 3 . 2 . . . 4 1 4 3 . 3 2 . 2 . . . 3 3 . 1 . . . . Spaces Dug 688 | . 5 . 2 . 4 52 . . . 1 49 2 36 4 3 . 24 49 41 11 . 32 35 2 88 10 10 . 9 83 54 10 72 Terrain Destroyed 1200 | . 8 . 78 . 39 80 . . . 1 50 12 44 7 60 . 111 54 45 24 . 35 40 3 166 24 18 . 16 104 72 11 98 Melee 248 | . . . . . 4 49 . . . 1 45 1 28 1 3 . 8 40 3 7 . 6 18 . 32 . . . 2 . . . . Projectile 583 | . 5 . 2 . 2 5 . . . . 5 11 16 6 . . 19 14 42 17 . 29 17 3 65 24 11 . 14 104 72 11 89 AOE 369 | . 3 . 76 . 33 26 . . . . . . . . 57 . 84 . . . . . 5 . 69 . 7 . . . . . 9 Terrain Rammed . | . . . . . . . . . . . . . . . . . . . . . . . . . . . . . . . . . . Walls Destroyed . | . . . . . . . . . . . . . . . . . . . . . . . . . . . . . . . . . . Machines Disabled . | . . . . . . . . . . . . . . . . . . . . . . . . . . . . . . . . . . Actions | -11 -10 -10 -9 -9 -8 -7 -7 -7 -7 -6 -6 -6 -6 -6 -6 -6 -5 -5 -5 -5 -5 -4 -4 -4 -4 -4 -4 -4 -3 -3 -3 -2 -2 --------- Run | Scr Mat Min Mat Min Mat Fac Low Low Dat Pro Fac Was Fac Low Low Zio Pro Fac Upp Upp Zhi Pro Fac Was Fac Upp Upp War Pro Res Tes Res Qua Total 43634 | 13 829 510 659 839 1860 3164 558 475 81 770 1939 991 1574 986 872 1447 1073 1586 1419 911 839 785 1147 515 3469 1207 1180 1015 1119 3223 3000 1675 1904 Wait 7183 | . 3 5 14 79 71 483 7 14 . 67 178 293 327 125 65 478 292 187 374 182 434 201 186 140 697 101 292 166 513 535 445 78 151 Move 32913 | 5 742 497 530 711 1496 2468 550 461 81 702 1648 539 1125 850 789 920 731 1243 962 639 365 522 825 266 2516 1072 837 786 589 2367 2085 1532 1462 Hop 3 | . . . . . . 3 . . . . . . . . . . . . . . . . . . . . . . . . . . . Pick Up 317 | . 14 2 8 2 35 28 . . . . 16 9 14 . 1 20 . 13 1 1 9 . 10 3 17 3 5 6 . 33 36 6 25 Fast Attach 160 | 1 1 . 4 2 10 11 . . . . 5 2 . . . 1 . . 1 . 3 2 1 4 4 1 4 9 . 19 41 15 19 Attach 170 | 2 . . 9 10 6 21 . . . . 4 1 1 . . . 1 11 4 . 2 1 11 3 10 2 3 2 . 17 30 5 14 Detach 70 | . 1 . 2 1 5 11 . . . . 3 . . . . . . 2 5 . . 1 3 1 5 . 3 2 . 3 11 6 5 Swap 376 | 1 13 . 9 6 42 12 1 . . . 7 8 15 2 9 7 7 26 12 4 9 4 14 1 34 1 6 3 1 24 72 5 21 Drop 422 | 2 8 . 4 . 43 42 . . . . 14 10 10 . 1 21 . 9 1 . 9 2 6 6 15 4 9 15 . 52 73 17 49 Fire 1424 | 2 46 6 77 27 138 21 . . . . 5 95 20 6 4 . 29 15 42 17 7 29 39 91 103 23 19 . 14 173 207 11 158 Melee 502 | . . . . . 6 64 . . . 1 59 34 62 3 3 . 13 80 17 15 1 23 52 . 65 . 2 . 2 . . . . Ram 2 | . 1 . . 1 . . . . . . . . . . . . . . . . . . . . . . . . . . . . . Kick . | . . . . . . . . . . . . . . . . . . . . . . . . . . . . . . . . . . Crush 10 | . . . 2 . 8 . . . . . . . . . . . . . . . . . . . . . . . . . . . . Escape Stasis 3 | . . . . . . . . . . . . . . . . . . . . . . . . . 3 . . . . . . . . Rewire 79 | . . . . . . . . . . . . . . . . . . . . 53 . . . . . . . 26 . . . . . Trap . | . . . . . . . . . . . . . . . . . . . . . . . . . . . . . . . . . . Miscellaneous . | . . . . . . . . . . . . . . . . . . . . . . . . . . . . . . . . . . Route ------- -11/Scrapyard -10/Materials (discovered 4 exits: *Mat x3 / [*Min]) -10/Mines (discovered 2 exits: *Mat x2) -9/Materials (discovered 2 exits: *Mat / *Min) -9/Mines (discovered 3 exits: *Mat x2 / [*Exi]) -8/Materials (discovered 3 exits: *Fac x3) -7/Factory (discovered 5 exits: *Fac / *Sto x2 / *Low x2) -7/Lower Caves -7/Lower Caves -7/Data Miner -6/Proximity Caves -6/Factory (discovered 4 exits: *Fac x2 / *Low x2) -6/Waste -6/Factory (discovered 2 exits: *Low x2) -6/Lower Caves -6/Lower Caves (discovered 2 exits: *Fac / *Zio) -6/Zion -5/Proximity Caves -5/Factory (discovered 3 exits: Fac / *Upp x2) -5/Upper Caves -5/Upper Caves -5/Zhirov -4/Proximity Caves -4/Factory -4/Waste -4/Factory (discovered 5 exits: *Res / *Upp x2 / *Ext x2) -4/Upper Caves (discovered 2 exits: *Upp / *War) -4/Upper Caves (discovered 2 exits: *Res / *War) -4/Warlord -3/Proximity Caves -3/Research (discovered 4 exits: *Res / *Arm / *Tes x2) -3/Testing -2/Research (discovered 2 exits: *Acc / *Qua) -2/Quarantine (discovered 1 exit: Acc) History --------- Turn | Location | Event 12 | -11/Scrapyard | Discovered new exit (range 2) 19 | -11/Scrapyard | Entered Materials 71 | -10/Materials | Central database locked down 155 | -10/Materials | Discovered new exit (range 16) 275 | -10/Materials | Discovered new exit (range 15) 332 | -10/Materials | Build established: Mutant 580 | -10/Materials | Discovered new exit (range 3) 884 | -10/Materials | Discovered new exit (range 6) 925 | -10/Materials | Build established: Hauler-Mutant 1109 | -10/Materials | Entered Mines 1226 | -10/Mines | Discovered new exit (range 12) 1272 | -10/Mines | Received a Rocket Launcher from a helpful Derelict 1631 | -10/Mines | Discovered new exit (range 15) 1830 | -10/Mines | Entered Materials 1830 | -9/Materials | Evolved 2 slots: Utility x2 2017 | -9/Materials | Central database locked down 2088 | -9/Materials | Discovered new exit (range 16) 2444 | -9/Materials | Discovered new exit (range 9) 2626 | -9/Materials | Lost 3 parts (1n2w) 2627 | -9/Materials | Destroyed 10 combat bots 2668 | -9/Materials | Core integrity fell below 50% 3045 | -9/Materials | Entered Mines 3046 | -9/Mines | Assembled infested the area 3277 | -9/Mines | Lost 4 parts (2n1u1w) 3406 | -9/Mines | Discovered new exit (range 5) 3562 | -9/Mines | Discovered new exit (range 6) 3685 | -9/Mines | Core integrity fell below 20% 3727 | -9/Mines | Lost 5 parts (1p2n2w) 3850 | -9/Mines | Deemed a non-threat by the Exiles lab entrance 3850 | -9/Mines | Discovered new exit (range 5) 3952 | -9/Mines | Learned location of 1 exit from Materials 4018 | -9/Mines | Met a Derelict shopkeep closing up shop 4400 | -9/Mines | Entered Materials 4400 | -8/Materials | Evolved 2 slots: Propulsion x1, Utility x1 4401 | -8/Materials | Identified exit to Factory 5576 | -8/Materials | Discovered exit to Factory (range 11) 6462 | -8/Materials | Repaired Shock Bomb Launcher 7479 | -8/Materials | Discovered exit to Factory (range 7) 7600 | -8/Materials | First assault squad dispatched 7614 | -8/Materials | Entered Factory 7614 | -7/Factory | Evolved 2 slots: Utility x2 7847 | -7/Factory | Identified exit to Storage 7847 | -7/Factory | Identified exit to Lower Caves 7979 | -7/Factory | Discovered new exit (range 12) 7987 | -7/Factory | Identified exit to Factory 8248 | -7/Factory | Central database locked down 8338 | -7/Factory | Fabricated Cmb. Airjet? 8379 | -7/Factory | Fabricated Cmb. Airjet? 8391 | -7/Factory | Fabricated Cmb. Airjet? 8614 | -7/Factory | Build established: Hacker-Sprinter 8801 | -7/Factory | Fabricated Cmb. Airjet (x2) 8976 | -7/Factory | Build established: Hacker-Mutant 9495 | -7/Factory | Entered Lower Caves 9523 | -7/Lower Caves | Encountered a Warlord checkpoint 9700 | -7/Lower Caves | Learned Factory trap positions 9856 | -7/Lower Caves | Discovered new exit (range 3) 9857 | -7/Lower Caves | Identified exit to Lower Caves 9900 | -7/Lower Caves | Entered another Lower Caves area 10090 | -7/Lower Caves | Encountered a Warlord checkpoint 10105 | -7/Lower Caves | Learned Factory emergency access door positions 10107 | -7/Lower Caves | Discovered new exit (range 7) 10113 | -7/Lower Caves | Learned Factory stockpile data 10246 | -7/Lower Caves | Identified exit to Data Miner 10246 | -7/Lower Caves | Entered Data Miner 10246 | -7/Data Miner | Discovered new exit (range 6) 10260 | -7/Data Miner | Met Data Miner 10275 | -7/Data Miner | Learned location of Section 7 (-2) 10275 | -7/Data Miner | Acquired the access code to Warlord's prototype stash 10286 | -7/Data Miner | Received God Mode back door access code from Data Miner 10304 | -7/Data Miner | Identified exit to Proximity Caves 10305 | -7/Data Miner | Entered Proximity Caves 10463 | -6/Proximity Caves | Learned Factory trap positions 10520 | -6/Proximity Caves | Escorted by Enhanced Grunt 10781 | -6/Proximity Caves | Discovered exit to Factory (range 8) 10880 | -6/Proximity Caves | Entered Factory 10880 | -6/Factory | Accompanied by 1 ally 10880 | -6/Factory | Evolved 2 slots: Propulsion x1, Utility x1 10881 | -6/Factory | Loaded intel: 100 trap records 10936 | -6/Factory | Discovered new exit (range 16) 10947 | -6/Factory | Identified exit to Factory 11004 | -6/Factory | Discovered new exit (range 16) 11035 | -6/Factory | Identified exit to Lower Caves 11208 | -6/Factory | Discovered exit to Factory (range 4) 11413 | -6/Factory | Repaired Lrn. Sensor Array 11708 | -6/Factory | Fabricated Power Sword? 11710 | -6/Factory | Fabricated Exp. Sensor Array (x1) 12381 | -6/Factory | Manually triggered Chute Trap 12381 | -6/Factory | Sucked down chute 12381 | -6/Factory | Entered Waste 12403 | -6/Waste | Spotted C-40 Crusher 12429 | -6/Waste | Crushed by Compactor (1 part destroyed, 1 dropped) 12433 | -6/Waste | Spotted C-40 Crusher 12433 | -6/Waste | Spotted C-40 Crusher 12476 | -6/Waste | Spotted C-40 Crusher 12485 | -6/Waste | Spotted C-40 Crusher 12512 | -6/Waste | Spotted C-40 Crusher 12534 | -6/Waste | Destroyed C-40 Crusher 12546 | -6/Waste | Destroyed C-40 Crusher 12710 | -6/Waste | Destroyed C-40 Crusher 12743 | -6/Waste | Destroyed C-40 Crusher 12776 | -6/Waste | Destroyed C-40 Crusher 12807 | -6/Waste | Destroyed C-40 Crusher 12817 | -6/Waste | Found Damper Plating 13075 | -6/Waste | Discovered new exit (range 15) 13122 | -6/Waste | Warlord forces began an assault 13200 | -6/Waste | Identified exit to Factory 13411 | -6/Waste | Entered Factory 13412 | -6/Factory | Loaded intel: 76 trap records 13603 | -6/Factory | Repaired Hvy. Neutron Cannon 13932 | -6/Factory | Repaired Imp. System Shield? 14306 | -6/Factory | Fabricated Cmb. Airjet? 14507 | -6/Factory | Found Prototype Processor 14599 | -6/Factory | Identified Exp. Signal Interpreter 14619 | -6/Factory | Local fabrication network quarantined 14625 | -6/Factory | Fabricated Exp. Transmission Jammer (x1) 14741 | -6/Factory | Entered Lower Caves 14777 | -6/Lower Caves | Learned location of Extension (-4) 15458 | -6/Lower Caves | Discovered new exit (range 11) 15466 | -6/Lower Caves | Identified exit to Lower Caves 15467 | -6/Lower Caves | Entered another Lower Caves area 15475 | -6/Lower Caves | Learned Factory trap positions 15531 | -6/Lower Caves | Discovered exit to Factory (range 8) 16050 | -6/Lower Caves | Learned Factory stockpile data 16050 | -6/Lower Caves | Learned Factory garrison access intel 16056 | -6/Lower Caves | Discovered new exit (range 10) 16063 | -6/Lower Caves | Identified exit to Zion 16100 | -6/Lower Caves | Entered Zion 16150 | -6/Zion | Discovered new exit (range 16) 16193 | -6/Zion | Found Prototype Launcher 16214 | -6/Zion | Identified Gui. Missile Launcher 16241 | -6/Zion | Given the Hacking Drone Bay 16250 | -6/Zion | System corruption cleaned by Quarantine Array 16310 | -6/Zion | Learned 8 Factory zone layouts 16326 | -6/Zion | Learned Factory emergency access door positions 16375 | -6/Zion | Found Prototype Processor 16443 | -6/Zion | Identified Exp. Target Analyzer 16453 | -6/Zion | Found Prototype Hackware 16560 | -6/Zion | Identified Exp. System Shield 16573 | -6/Zion | Found Prototype Processor 16604 | -6/Zion | Identified Spectral Analyzer 16679 | -6/Zion | Found Prototype Device 16730 | -6/Zion | Identified Phasing AFG 17024 | -6/Zion | Found Prototype Energy Gun 17030 | -6/Zion | Identified Storm Laser 17096 | -6/Zion | Found Prototype Device 17209 | -6/Zion | Identified Hacking Drone Bay 17246 | -6/Zion | Identified exit to Proximity Caves 17247 | -6/Zion | Entered Proximity Caves 17249 | -5/Proximity Caves | Attracted the attention of an 0b10 checkpoint 17998 | -5/Proximity Caves | Discovered exit to Factory (range 5) 18001 | -5/Proximity Caves | Learned location of 1 exit from Factory 18141 | -5/Proximity Caves | Entered Factory 18141 | -5/Factory | Evolved 2 slots: Propulsion x1, Utility x1 18142 | -5/Factory | Identified exit to Factory 18143 | -5/Factory | Identified exit to Upper Caves 18144 | -5/Factory | Loaded intel: 84 trap records 18147 | -5/Factory | Loaded intel: 4 garrison access locations 19245 | -5/Factory | Build established: Machinist-Mutant 19274 | -5/Factory | Fabricated Gamma Bomb Array (x1) 19422 | -5/Factory | Entered Upper Caves 19423 | -5/Upper Caves | Encountered a Warlord checkpoint 19542 | -5/Upper Caves | Learned Factory stockpile data 19603 | -5/Upper Caves | Attracted the attention of an 0b10 outpost 19671 | -5/Upper Caves | Learned location of Armory (-3) 20451 | -5/Upper Caves | Discovered new exit (range 10) 20458 | -5/Upper Caves | Identified exit to Upper Caves 20567 | -5/Upper Caves | Entered another Upper Caves area 20583 | -5/Upper Caves | Attacked by a delusional Derelict stockpiling Unaware 21245 | -5/Upper Caves | Discovered new exit (range 15) 21251 | -5/Upper Caves | Identified exit to Zhirov 21291 | -5/Upper Caves | Entered Zhirov 21291 | -5/Zhirov | Discovered new exit (range 3) 21293 | -5/Zhirov | Identified exit to Proximity Caves 21314 | -5/Zhirov | Met Zhirov 21327 | -5/Zhirov | Learned location of Quarantine (-2) 21327 | -5/Zhirov | Learned location of Testing (-3) 21327 | -5/Zhirov | Learned location of Command (-1) 21341 | -5/Zhirov | Zhirov requested help retrieving the SGEMP Prototype 21354 | -5/Zhirov | Found Alien Artifact 21644 | -5/Zhirov | Build established: Hacker-Mutant 21673 | -5/Zhirov | Identified Transdimensional Reconstructor 21673 | -5/Zhirov | Warped through subspace 21716 | -5/Zhirov | Found Alien Artifact 21856 | -5/Zhirov | Identified Integrated Dissipator 21856 | -5/Zhirov | Installed Integrated Dissipator, increased core heat dissipation (+20) 22008 | -5/Zhirov | Entered Proximity Caves 22114 | -4/Proximity Caves | Learned Research garrison access intel 22118 | -4/Proximity Caves | Learned Research interactive machine intel 22315 | -4/Proximity Caves | Spotted B-86 Titan 22661 | -4/Proximity Caves | Discovered exit to Factory (range 3) 22671 | -4/Proximity Caves | Entered Factory 22671 | -4/Factory | Evolved 2 slots: Utility x2 22915 | -4/Factory | Repaired Exp. Sensor Array 22943 | -4/Factory | Repaired Power Sword 22945 | -4/Factory | Repaired Cmb. Airjet? 22969 | -4/Factory | Repaired Cmb. Airjet 23483 | -4/Factory | Local fabrication network quarantined 23540 | -4/Factory | Fabricated Enh. Force Rifle (x1) 23652 | -4/Factory | Sucked down chute 23652 | -4/Factory | Entered Waste 23653 | -4/Waste | Met a frightened Derelict 23667 | -4/Waste | EMP discharged 23696 | -4/Waste | Spotted C-40 Crusher 23696 | -4/Waste | Spotted C-40 Crusher 23745 | -4/Waste | Spotted C-40 Crusher 23767 | -4/Waste | EMP discharged 23771 | -4/Waste | Spotted C-40 Crusher 23773 | -4/Waste | Destroyed C-40 Crusher 23789 | -4/Waste | Spotted C-40 Crusher 23867 | -4/Waste | EMP discharged 23967 | -4/Waste | EMP discharged 23968 | -4/Waste | Spotted C-40 Crusher 24019 | -4/Waste | Destroyed C-40 Crusher 24044 | -4/Waste | Found Damper Plating 24067 | -4/Waste | EMP discharged 24074 | -4/Waste | Destroyed C-40 Crusher 24079 | -4/Waste | Found Damper Plating 24081 | -4/Waste | Found Damper Plating 24092 | -4/Waste | Destroyed C-40 Crusher 24097 | -4/Waste | Found Damper Plating 24142 | -4/Waste | Discovered new exit (range 16) 24167 | -4/Waste | EMP discharged 24172 | -4/Waste | Identified exit to Factory 24179 | -4/Waste | Entered Factory 24286 | -4/Factory | Found Quantum Capacitor 24310 | -4/Factory | Found Exp. System Shield 24511 | -4/Factory | Discovered new exit (range 9) 24515 | -4/Factory | Identified exit to Extension 24730 | -4/Factory | Spotted B-86 Titan 24938 | -4/Factory | Repaired Hrd. Heavy Armor Plating 24961 | -4/Factory | Discovered new exit (range 12) 25496 | -4/Factory | Repaired Cmb. Airjet 25556 | -4/Factory | Identified exit to Upper Caves 26517 | -4/Factory | Fabricated Cmb. Antigrav System? 26850 | -4/Factory | Repaired Exp. Utility Shielding 26929 | -4/Factory | First assault squad dispatched 26960 | -4/Factory | Entered Upper Caves 27191 | -4/Upper Caves | Learned Research trap positions 27197 | -4/Upper Caves | Learned 4 Research zone layouts 27424 | -4/Upper Caves | Learned Research terminal intel 27617 | -4/Upper Caves | Discovered new exit (range 11) 27662 | -4/Upper Caves | A Derelict revealed a hidden shortcut to "reach the base" 27666 | -4/Upper Caves | Identified exit to Warlord 27807 | -4/Upper Caves | Identified exit to Upper Caves 27808 | -4/Upper Caves | Entered another Upper Caves area 27838 | -4/Upper Caves | Acquired the password to a Derelict Tinkerer's latest research 27857 | -4/Upper Caves | Discovered new exit (range 10) 27866 | -4/Upper Caves | Found Prototype Special Weapon 27872 | -4/Upper Caves | Identified Molecular Deconstructor 27899 | -4/Upper Caves | Identified exit to Research 27973 | -4/Upper Caves | Caught by Unaware searching for contraband prototypes 28077 | -4/Upper Caves | Caught by Unaware searching for contraband prototypes 28711 | -4/Upper Caves | Entered Warlord 28759 | -4/Warlord | Discovered new exit (range 8) 28782 | -4/Warlord | System corruption cleaned by Quarantine Array 29037 | -4/Warlord | Met Warlord 29053 | -4/Warlord | Opened Warlord's prototype stash 29057 | -4/Warlord | Found Prototype Device 29057 | -4/Warlord | Identified Thermal Barrier 29061 | -4/Warlord | Found Prototype Processor 29062 | -4/Warlord | Warlord's base attacked by MAIN.C 29066 | -4/Warlord | Identified Exp. Core Analyzer 29066 | -4/Warlord | Found Prototype Hackware 29066 | -4/Warlord | Identified Ghost Barrier 29075 | -4/Warlord | Found Prototype Device 29075 | -4/Warlord | Identified Exp. Cloaking Device 29130 | -4/Warlord | Found Prototype Reactor 29190 | -4/Warlord | Found Prototype Energy Gun 29190 | -4/Warlord | Identified Vortex Shotgun 29412 | -4/Warlord | Warlord forces counterattacked 29421 | -4/Warlord | Opened side exit 29440 | -4/Warlord | Identified exit to Proximity Caves 29441 | -4/Warlord | Entered Proximity Caves 29960 | -3/Proximity Caves | Received a Behemoth hack from an annoying Tinkerer 30344 | -3/Proximity Caves | Discovered exit to Research (range 8) 30369 | -3/Proximity Caves | Entered Research 30369 | -3/Research | Evolved 2 slots: Power x1, Utility x1 30371 | -3/Research | Loaded intel: 74 trap records 30371 | -3/Research | Identified Vortex Chain Reactor 30372 | -3/Research | Loaded intel: 37 interactive machine locations 30373 | -3/Research | Loaded intel: 15 terminal locations 30374 | -3/Research | Loaded intel: 4 garrison access locations 30569 | -3/Research | Identified exit to Armory 30569 | -3/Research | Identified exit to Testing 30664 | -3/Research | Fabricated Cmb. Antigrav System? 30808 | -3/Research | Fabricated Cmb. Antigrav System (x2) 30854 | -3/Research | Local fabrication network quarantined 31363 | -3/Research | Repaired Gamma Bomb Array 31927 | -3/Research | Discovered new exit (range 12) 31963 | -3/Research | Found Unknown Device 31963 | -3/Research | Identified Antimissile System 32028 | -3/Research | Found Enh. Force Lance 32046 | -3/Research | Identified exit to Research 32061 | -3/Research | Found Exp. Signal Interpreter 32527 | -3/Research | Found Fusion Bomb Launcher 32981 | -3/Research | Entered Testing 33199 | -3/Testing | Found Prototype Energy Cannon 33199 | -3/Testing | Identified Imp. Potential Cannon 33278 | -3/Testing | Found Prototype Energy Gun 33278 | -3/Testing | Identified Hyp. EM Gauss Rifle 33406 | -3/Testing | Found Prototype Ballistic Cannon 33406 | -3/Testing | Identified Omega Cannon 33568 | -3/Testing | Found Prototype Energy Cannon 33568 | -3/Testing | Identified Null Cannon 33618 | -3/Testing | Spotted PD-1STJ9VOEOI 33957 | -3/Testing | Found Prototype Energy Gun 33957 | -3/Testing | Identified Tachyon Dispersion Ray 34040 | -3/Testing | Discovered exit to Research (range 9) 34069 | -3/Testing | Repaired Broken Particle Accelerator? 34097 | -3/Testing | Found Prototype Energy Cannon 34097 | -3/Testing | Identified Disintegrator 34475 | -3/Testing | Fabricated Exp. Propulsion Shielding (x1) 34539 | -3/Testing | Fabricated Cmb. Antigrav System (x2) 34646 | -3/Testing | Found Prototype Energy Gun 34646 | -3/Testing | Identified Warp Gun 34666 | -3/Testing | Spotted Striker 34666 | -3/Testing | Protovariant out of control (PD-1STJ9VOEOI) 34666 | -3/Testing | Unleashed a protovariant (PD-1STJ9VOEOI) 34695 | -3/Testing | Incoming assault squad redirected 34912 | -3/Testing | Incoming assault squad redirected 34954 | -3/Testing | Spotted Striker 35006 | -3/Testing | Destroyed Striker 35071 | -3/Testing | Destroyed Striker 35110 | -3/Testing | Stole the SGEMP Prototype 35228 | -3/Testing | Found Prototype Launcher 35228 | -3/Testing | Identified Containment Facilitator 35368 | -3/Testing | Build established: Machinist-Mutant 35776 | -3/Testing | Entered Research 35776 | -2/Research | Warlord forces began assault on 0b10 35776 | -2/Research | Evolved 2 slots: Propulsion x1, Utility x1 35777 | -2/Research | Identified exit to Quarantine 35874 | -2/Research | Met up with Warlord 35886 | -2/Research | Research machine network offline 36249 | -2/Research | Borebot progress halted 36417 | -2/Research | Spotted Striker 36479 | -2/Research | Borebot progress halted 36566 | -2/Research | Borebot progress halted 36642 | -2/Research | Warlord destroyed during the assault 36823 | -2/Research | Discovered new exit (range 15) 36847 | -2/Research | Entered Quarantine 36860 | -2/Quarantine | Found Alien Artifact 36860 | -2/Quarantine | Identified Stasis Generator 37197 | -2/Quarantine | Found Alien Artifact 37197 | -2/Quarantine | Identified Subatomic Replicator 37347 | -2/Quarantine | Found Prototype Launcher 37347 | -2/Quarantine | Identified Hellfire Missile Launcher 37429 | -2/Quarantine | Found Alien Artifact 37433 | -2/Quarantine | Identified Phase Redirector 37530 | -2/Quarantine | Identified exit to Access 37557 | -2/Quarantine | Found Alien Artifact 37569 | -2/Quarantine | Identified Hpw. Transdimensional Reconstructor 37580 | -2/Quarantine | Found Alien Artifact 37593 | -2/Quarantine | Identified Dimensional Node Initializer 37653 | -2/Quarantine | Build established: Hacker-Mutant 37661 | -2/Quarantine | Found Transdimensional Reconstructor 37685 | -2/Quarantine | Found Alien Impact Weapon 37712 | -2/Quarantine | Found Sigix Corpse 37983 | -2/Quarantine | Found Alien Artifact 37983 | -2/Quarantine | Identified Matter Drive 38023 | -2/Quarantine | Spotted Alpha 7 38060 | -2/Quarantine | Found Alien Artifact 38064 | -2/Quarantine | Found Alien Artifact 38068 | -2/Quarantine | Found Alien Artifact 38249 | -2/Quarantine | Scanned by Researcher 38258 | -2/Quarantine | Self-destructed Last Messages --------------- 38236_ Destroyed Imp. Ion Engine. 38236_ Destroyed Com. Wheel. 38238_ R-10 Processor suffers critical hit. 38238_ R-10 Processor destroyed. 38239_ Acquired 44 matter. 38240_ U-05 Engineer builds a Wall. 38249_ C-65 Expert calls for reinforcements. 38249_ ALERT: Hostile activity reported, dispatching reinforcements to area. 38249_ Held in stasis. 38249_ C-65 Expert is analyzing... 38249_ ALERT: Encountered unknown unique technology, formulating response. 38250_ U-05 Engineer destroyed. 38253_ Held in stasis. 38254_ Destroyed Corruption Screen. 38256_ U-05 Engineer lays Concrete. 38257_ Held in stasis. 38257_ C-65 Expert is analyzing... [Achievement: I Think I Know What's Going On] Map ----- +----------------------------------------------------+ | ?????# """# ############????????????????????? | | ?????# """# ## #########????????????????????? | | ???### """# # = ##????????????????????? | | ???#"" # # "" #?????????????????????? | | ???#"" """#^^^# """ """#?????????????????????? | | ???#"T """#^^^# """! !S"#??????????????????#### | | ???#"" """# # """ """#??????????????????# ## | | ???#"" + / """#??????????????????# ## | | ???### # # #??????????????????# # | | ?????# # # ! #???????????????####### | | ?????######### ###########???????????????# | | ?????######## ! #?????????????????#""" [ | | ?????# "T* # ! ###########???????#""" | | ?????# "" ! + ! # #???????#""" | | ?????#"" !! # """ """ # """"" #???????# | | ?????#" ! # """ """ # " """ #???????#""" | | ?????#"" ! !# """ """ # "!" " #???????#""" | | ?????# "" # R # ! " #???????#""" | | ?????# "" # """ """ + "" #???????# | | ############# """ """ # #??############ | | """u""" # #??# ### | | ############## """ + | | """ """ ####### # ""&" ### | | """ """ =* T" # """" # | | " " """ = = " + T # | | gg @ uu!! ] # """" # | | w b =%####### # "" " # | | ######+##### g # ############## & "" # | | ########## # ! #??# # | | | #????????# =# != #??########## | | """""" #????????# %/ ! != *#???????????# | | """""" #????????# # ! #???????????# | | ! """""" #????????# # #??????????## | | #????????# # #??????????## | | ######################c # = #?????????##### | | ????????# # # #?????????#"""T | | ????????# # ###"" ""###???????###""" | | ????????# #= #?#""R""#?????????# | | ????????# # #?# """"#?????????#! | | ????????# " # #?#######?????????# | | ????????# " " T # #?????????????????# | | ????????# ""* # #?????????????????# | | ????????# """ """ # #?????????????????# | | ????????# """ # #?????????????????# | | ????????# # #?????????????????# ] | | ????????# # #?????????????????####### | | ????????# # #???????????????????????? | | #################+#### ##########??????????????? | | # !% =% ????####### | | # =! [% % % % | +----------------------------------------------------+ Best States ------------- Heat Dissipation 107 Energy Generation 55 Energy Capacity 1700 Matter Stores 300 Matter Capacity 300 Sight Range 16 Robot Scan Range 30 Terrain Scan Range 24 Terrain Scan Density 10 Jamming Range 22 Armor Coverage 1200 Resistance: EM 90 Propulsion Shielding 90 Utility Shielding 90 Reclamation Efficiency 25 Melee Speed Boost 20 Evasion (%) 64 Targeting Accuracy 6 Recoil Reduction 3 Particle Charging 30 Offensive Hacking 40 Defensive Hacking 36 Item Schematics ----------------- Med. Storage Unit | -9/Materials | Scanalyzed Lrg. Storage Unit | -9/Materials | Scanalyzed Hcp. Storage Unit | -9/Materials | Scanalyzed Cesium-ion Thruster | -8/Materials | Scanalyzed Lrn. Sensor Array | -7/Factory | Hacked Cmb. Airjet | -7/Factory | Hacked System Shield | -7/Factory | Scanalyzed Combat Drone Bay | -7/Data Miner | Free Lgt. Regenerative Plating | -7/Data Miner | Free Exp. Flexi-carbon Leg | -7/Data Miner | Free Exp. Terrain Scan Processor | -7/Data Miner | Free Exp. Targeting Computer | -7/Data Miner | Free Exp. Transmission Jammer | -7/Data Miner | Free Power Sword | -6/Factory | Hacked Exp. Sensor Array | -6/Factory | Hacked Imp. Hacking Suite | -6/Factory | Hacked Quantum Capacitor | -6/Factory | Hacked Imp. Component Analysis Suite | -6/Factory | Hacked Hvy. Tesla Rifle | -6/Factory | Hacked Exp. Signal Interpreter | -6/Factory | Hacked Riot Gun | -6/Zion | Free Hvy. Riot Gun | -6/Zion | Free Tactical Coordination Suite | -6/Zion | Free Mic. Fission Core | -5/Factory | Scanalyzed Imp. Propulsion Shielding | -5/Factory | Scanalyzed Exp. System Shield | -5/Factory | Scanalyzed Gamma Bomb Array | -5/Factory | Hacked Assault Drone Bay | -5/Zhirov | Free Exp. Heat Sink | -5/Zhirov | Free Exp. Optical Array | -5/Zhirov | Free Imp. Arc Thrower | -5/Zhirov | Free Mni. Smartbomb Launcher | -4/Factory | Hacked Adv. Reaction Control System | -4/Factory | Hacked Exp. Propulsion Shielding | -4/Factory | Hacked Enh. Force Rifle | -4/Factory | Hacked Nova Cannon | -4/Factory | Hacked Cmb. Antigrav System | -4/Factory | Hacked HERF Cannon | -4/Factory | Hacked Vortex Chain Reactor | -3/Research | Scanalyzed Lyr. Heavy Armor Plating | -2/Quarantine | Scanalyzed Adv. Phase Shifter | -2/Quarantine | Hacked Robot Schematics ------------------ S-27 Virus | -7/Data Miner | Free G-50 Soldier | -7/Data Miner | Free I-36 Angel | -7/Data Miner | Free I-47 Archangel | -7/Data Miner | Free Fabricated ------------ Cmb. Airjet | x2 | -7/Factory Cmb. Airjet | x2 | -7/Factory Cmb. Airjet | x2 | -7/Factory Cmb. Airjet | x2 | -7/Factory Power Sword | x2 | -6/Factory Exp. Sensor Array | x1 | -6/Factory Cmb. Airjet | x2 | -6/Factory Exp. Transmission Jammer | x1 | -6/Factory Gamma Bomb Array | x1 | -5/Factory Enh. Force Rifle | x1 | -4/Factory Cmb. Antigrav System | x2 | -4/Factory Cmb. Antigrav System | x2 | -3/Research Cmb. Antigrav System | x2 | -3/Research Exp. Propulsion Shielding | x1 | -3/Testing Cmb. Antigrav System | x2 | -3/Testing Alien Tech Used ----------------- Transdimensional Reconstructor Integrated Dissipator Stasis Generator Subatomic Replicator Phase Redirector Matter Drive Achievements -------------- Alien Tech All-out Warlord Charge!!! I Think I Know What's Going On Rampage Subspace Traveler The Science Guy Challenges ------------ None Game ------ Seed VariableDroneLance Manual? 0 Play Time 13:00:22 Cumulative 126.0 hours Start 2020.11.10 @ 17:21:21 End 2020.11.12 @ 00:50:12 Sessions 1 Manual Loads 0 Difficulty Rogue Special Mode Halloween2020/ForbiddenLore Game No. 62 Rogue 62 Adventurer 0 Explorer 0 Win Type - Total 1 Types 1/0/0/0/0/0/0/0/0 Lore% 50 Gallery% 54 Achievement% 44 Wizard Run 0 Options --------- ASCII 1 Keyboard 1 Movement Vi Keybinds 0 Fullscreen 1 Font 16/Terminus Map View 75x55 Tactical HUD 1 Map Filters NONE Filters NONE Steam 1 RUN: 337c4053-1f05-48b7-8756-787de0db5b91